bitfinex/quotes_ETHUSD_20260106
["timestamp","ask_amount","ask_price","bid_price","bid_amount"]
[1767731214597,1.26771067,3236.5,3235.9,3.84005657]
[1767731214906,1.5564984,3236.4,3235.9,3.09033012]
[1767731215085,1.26771067,3236.4,3236.2,0.001]
[1767731218602,4.38026024,3236.6,3236.2,0.001]
[1767731218784,0.28883164,3236.5,3236.2,0.001]
[1767731218984,0.28883164,3236.4,3236.2,1.31392248]
[1767731219195,0.81,3236.6,3236.2,1.31392248]
[1767731219378,0.28884793,3236.5,3236.2,1.31392248]
[1767731219579,0.28884793,3236.4,3236.2,0.001]
[1767731219780,0.81,3236.6,3236.2,0.001]
[1767731219982,0.28884793,3236.5,3236.2,0.001]
[1767731220306,0.81,3236.6,3236.2,0.001]
[1767731220307,0.28884793,3236.4,3236.2,0.001]
[1767731220506,0.81,3236.6,3236.2,0.001]
[1767731220708,0.28886222,3236.5,3236.2,0.001]
[1767731220908,0.81,3236.6,3236.2,0.001]
[1767731220909,0.28886222,3236.4,3236.2,0.001]
[1767731221110,0.81,3236.6,3236.2,1.31392248]
[1767731221284,0.28886217,3236.5,3236.2,1.31392248]
[1767731221480,0.28886217,3236.4,3236.2,1.31392248]
[1767731221702,0.81,3236.6,3236.2,1.31392248]
[1767731221907,0.28888118,3236.5,3236.2,1.31392248]
[1767731222107,0.28888118,3236.4,3236.2,1.31392248]
[1767731222307,0.81,3236.6,3236.2,1.31392248]
[1767731222487,0.28889898,3236.5,3236.2,1.31392248]
[1767731222692,0.28889898,3236.4,3236.2,1.31392248]
[1767731222880,0.002,3236.7,3236.2,1.31392248]
[1767731223080,0.28889877,3236.6,3236.2,1.31392248]
[1767731223281,0.28889877,3236.5,3236.2,1.31392248]
[1767731223508,0.28889877,3236.4,3236.2,1.31392248]
[1767731223714,0.812,3236.7,3236.2,1.31392248]
[1767731224009,0.28892894,3236.6,3236.2,1.31392248]
[1767731224207,0.002,3236.7,3236.3,1.34979398]
[1767731224390,0.002,3237.0,3236.7,1.34979398]
[1767731226486,0.002,3237.0,3236.7,1.34579398]
[1767731228515,0.002,3237.0,3236.5,4.43950588]
[1767731228896,0.002,3237.0,3236.6,3.08965772]
[1767731229418,0.002,3237.0,3236.5,4.43950878]
[1767731229617,0.002,3237.0,3236.5,5.19244421]
[1767731230821,0.002,3237.0,3236.5,2.10272941]
[1767731230993,0.002,3237.0,3236.5,5.19248561]
[1767731232519,0.002,3237.0,3236.5,3.84269163]
[1767731232720,0.002,3237.0,3236.6,1.34979398]
[1767731233520,0.002,3237.0,3236.6,1.34779398]
[1767731235017,0.002,3237.0,3236.6,4.4374538]
[1767731236319,0.28882974,3236.9,3236.6,4.4374538]
[1767731236493,0.002,3237.0,3236.6,4.4374538]
[1767731236691,0.28882976,3236.9,3236.6,4.4374538]
[1767731236893,0.002,3237.0,3236.6,4.4374538]
[1767731237123,0.28882976,3236.9,3236.6,4.4374538]
[1767731237322,0.002,3237.0,3236.6,5.26547729]
[1767731237620,0.28882185,3236.9,3236.6,5.26547729]
[1767731237822,0.002,3237.0,3236.6,2.17581747]
[1767731238118,0.2888283,3236.9,3236.6,5.26547336]
[1767731238425,0.002,3237.0,3236.6,5.26547336]
[1767731238619,0.28882309,3236.9,3236.6,4.43744987]
[1767731238829,0.002,3237.0,3236.6,4.43744987]
[1767731239124,0.26880127,3236.9,3236.6,4.43744987]
[1767731239326,0.002,3237.0,3236.6,4.43744987]
[1767731245939,0.002,3237.0,3236.6,7.52711186]
[1767731246138,1.24813042,3237.9,3237.1,1.34979398]
[1767731246312,1.24813042,3238.1,3237.1,1.34979398]
[1767731246513,2.05813042,3238.1,3237.1,1.34979398]
[1767731247014,0.81,3238.1,3237.1,1.34979398]
[1767731247220,1.25013042,3238.3,3237.1,1.34979398]
[1767731247221,2.06013042,3238.3,3237.1,1.34979398]
[1767731247538,5.14818323,3238.3,3237.1,1.34979398]
[1767731248040,5.14818323,3238.3,3237.3,1.34979398]
[1767731248207,5.14818323,3238.3,3237.5,1.34979398]
[1767731250439,5.14818323,3238.3,3237.5,4.43857486]
[1767731250829,0.002,3238.0,3237.5,4.43857486]
[1767731253325,0.002,3238.0,3237.3,3.08897351]
[1767731253326,1.28090721,3238.0,3237.2,3.08904165]
[1767731253744,1.28090721,3238.0,3237.3,3.08897309]
[1767731254044,1.28090721,3238.0,3237.4,3.08889803]
[1767731254226,0.81,3237.9,3237.4,4.38129351]
[1767731258547,0.002,3238.0,3237.4,4.38129351]
[1767731258729,0.002,3238.0,3237.5,1.29243403]
[1767731258928,0.002,3238.0,3237.4,6.61588732]
[1767731258929,0.002,3238.3,3237.7,1.29243403]
[1767731260046,0.002,3238.3,3237.7,4.38098594]
[1767731261745,0.002,3238.3,3237.7,4.37898594]
[1767731262444,0.002,3238.3,3237.8,1.29243403]
[1767731262649,0.002,3238.3,3237.9,1.29243403]
[1767731262846,0.002,3238.3,3237.8,0.43809859]
[1767731263344,1.28090721,3238.0,3237.8,0.43809859]
[1767731263651,1.28090721,3238.0,3237.3,1.29243403]
[1767731264246,1.28090721,3238.0,3237.4,3.08885174]
[1767731264451,0.002,3238.0,3237.5,3.08878505]
[1767731264645,0.002,3238.0,3237.4,1.29243403]
[1767731265434,0.002,3238.0,3237.4,4.38131805]
[1767731265838,0.002,3238.0,3237.4,5.1283569]
[1767731268754,1.27890721,3237.9,3237.1,1.29243403]
[1767731268927,1.27890721,3237.9,3237.1,4.3815779]
[1767731269254,1.27890721,3237.7,3237.0,3.08923603]
[1767731269661,1.27890721,3237.7,3237.1,3.08917968]
[1767731269952,1.27890721,3237.7,3237.2,3.08908462]
[1767731270955,1.27890721,3237.7,3237.1,3.08913747]
[1767731271927,3.09037409,3238.0,3237.1,4.3815715]
[1767731272129,3.09037409,3238.0,3237.2,1.29243403]
[1767731272130,1.56733233,3237.9,3237.2,1.29243403]
[1767731272355,0.28842512,3237.8,3237.2,1.29243403]
[1767731272549,0.28842512,3237.7,3237.2,1.29243403]
[1767731272725,1.27890721,3237.9,3237.2,1.29243403]
[1767731273051,0.28851193,3237.8,3237.2,1.29243403]
[1767731273259,0.28861844,3237.7,3237.2,4.38144518]
[1767731273426,1.27890721,3237.9,3237.2,4.38144518]
[1767731273427,4.36732981,3237.9,3237.3,1.29243403]
[1767731273631,0.28861805,3237.8,3237.3,1.29243403]
[1767731273832,0.28861805,3237.7,3237.3,1.29243403]
[1767731274042,4.86604912,3237.9,3237.3,1.29243403]
[1767731274237,0.28862508,3237.8,3237.3,1.29243403]
[1767731274440,0.28862508,3237.7,3237.3,1.29243403]
[1767731274756,4.86604912,3237.9,3237.1,4.3815966]
[1767731274933,0.28874114,3237.8,3237.5,0.001]
[1767731275135,0.28874114,3237.7,3237.5,0.001]
[1767731275460,0.28874114,3237.6,3237.5,0.001]
[1767731280160,0.21082418,3237.6,3237.5,0.001]
[1767731280359,0.002,3238.0,3237.5,1.29343403]
[1767731280657,0.002,3238.0,3237.7,1.29243403]
[1767731280862,1.27890721,3238.2,3237.6,3.08870768]
[1767731281237,3.09004002,3238.3,3237.7,1.24629798]
[1767731281438,1.29671664,3238.3,3237.7,1.24629798]
[1767731281638,4.38478904,3238.3,3237.7,1.24629798]
[1767731281838,1.29471664,3238.2,3237.6,3.08870768]
[1767731282864,1.29471664,3238.2,3237.5,0.001]
[1767731282865,1.29471664,3238.2,3237.5,3.08980018]
[1767731283072,1.29471664,3238.2,3237.6,0.75181598]
[1767731283442,4.38286996,3238.2,3237.6,0.75181598]
[1767731283648,1.29471664,3238.1,3237.5,3.08980018]
[1767731284766,1.29471664,3238.1,3237.5,6.17860326]
[1767731284967,1.29471664,3238.1,3237.5,3.08980018]
[1767731287954,0.002,3238.3,3237.6,1.33953114]
[1767731288271,0.002,3237.8,3237.6,1.33953114]
[1767731288441,1.29671664,3238.3,3237.6,1.33953114]
[1767731288442,1.29671664,3238.3,3237.6,0.75181344]
[1767731288640,1.29671664,3238.3,3237.6,3.08867355]
[1767731288641,0.002,3238.1,3237.6,3.08867355]
[1767731289061,1.29671664,3238.1,3237.5,0.001]
[1767731289242,1.29671664,3238.1,3236.7,1.33953114]
[1767731289440,1.29471664,3237.8,3236.9,3.09032511]
[1767731291877,1.29471664,3237.6,3236.9,0.001]
[1767731292179,1.29471664,3237.5,3236.9,0.001]
[1767731292379,1.29471664,3237.3,3236.9,0.001]
[1767731293849,1.5836602,3237.2,3236.9,0.001]
[1767731294049,1.29471664,3237.2,3236.9,0.001]
[1767731301684,1.29471664,3237.1,3236.9,0.001]
[1767731302072,1.73309731,3237.1,3236.4,0.809]
[1767731302386,4.38361709,3237.4,3236.6,4.42912122]
[1767731302565,1.58348934,3237.3,3236.6,4.42912122]
[1767731302766,0.2887727,3237.2,3236.6,4.42912122]
[1767731302988,1.29471664,3237.3,3236.6,4.42912122]
[1767731303182,0.28877246,3237.2,3236.6,4.42912122]
[1767731303390,1.29471664,3237.3,3236.6,4.42912122]
[1767731303588,0.28877322,3237.2,3236.6,4.42912122]
[1767731303769,1.29471664,3237.3,3236.6,4.42912122]
[1767731303969,0.28877327,3237.2,3236.6,4.42912122]
[1767731304168,1.29471664,3237.3,3236.6,4.42912122]
[1767731304377,0.28877564,3237.2,3236.6,4.42912122]
[1767731304598,1.29471664,3237.3,3236.6,5.26191621]
[1767731304894,0.28877593,3237.2,3236.6,5.26191621]
[1767731305065,4.38371489,3237.3,3236.6,5.26191621]
[1767731305266,0.28877862,3237.2,3236.6,5.26191621]
[1767731305466,4.38371489,3237.3,3236.6,5.26191621]
[1767731305668,0.28878469,3237.2,3236.6,5.26191621]
[1767731305892,4.38371489,3237.3,3236.6,5.26191621]
[1767731306097,0.28878469,3237.2,3236.6,5.26191621]
[1767731306300,1.29471664,3237.3,3236.6,5.26191621]
[1767731306502,0.28879723,3237.2,3236.6,5.26191621]
[1767731306670,4.38371515,3237.3,3236.6,5.26191621]
[1767731307000,0.2887972,3237.2,3236.6,4.42912122]
[1767731307181,4.38371515,3237.3,3236.6,4.42912122]
[1767731307501,0.28881561,3237.2,3236.6,4.42912122]
[1767731307680,4.38371515,3237.3,3236.6,4.42912122]
[1767731307877,0.28881561,3237.2,3236.6,4.42912122]
[1767731308094,4.38371515,3237.3,3236.6,4.42912122]
[1767731308399,0.28883243,3237.2,3236.6,4.42912122]
[1767731308698,4.38371515,3237.3,3236.6,4.42912122]
[1767731308899,0.28884154,3237.2,3236.6,4.42912122]
[1767731309102,0.28884127,3237.1,3236.6,1.33953114]
[1767731309269,4.38371515,3237.3,3236.6,4.42919266]
[1767731309594,1.58359095,3237.2,3236.6,3.08966152]
[1767731309799,0.28887431,3237.1,3236.5,4.42925328]
[1767731309967,1.29471664,3237.2,3236.6,3.08964933]
[1767731310171,0.28887423,3237.1,3236.6,4.42918047]
[1767731310505,1.29471664,3237.5,3236.7,1.33953114]
[1767731310679,1.58358607,3237.4,3236.7,1.78244919]
[1767731310879,0.28886943,3237.3,3236.7,1.78244919]
[1767731311098,0.28886943,3237.2,3236.7,1.78244919]
[1767731311291,3.08899391,3237.3,3236.7,1.78244919]
[1767731311487,0.28888085,3237.2,3236.7,1.78244919]
[1767731311673,3.08899391,3237.3,3236.8,0.48721101]
[1767731311873,0.28888083,3237.2,3236.8,0.48721101]
[1767731312098,0.28888083,3237.1,3236.8,0.48721101]
[1767731312303,3.08899391,3237.3,3236.9,0.001]
[1767731312502,0.002,3237.0,3236.9,0.001]
[1767731313883,1.28060835,3237.3,3236.9,0.001]
[1767731314079,0.28890354,3237.2,3236.9,0.001]
[1767731314280,0.28890354,3237.1,3236.9,0.001]
[1767731314484,1.28060835,3237.3,3236.9,0.001]
[1767731314698,0.28891131,3237.2,3236.9,0.001]
[1767731315000,0.28891131,3237.1,3236.9,0.001]
[1767731315205,1.28060835,3237.3,3236.9,0.001]
[1767731315374,0.28891862,3237.2,3236.9,0.001]
[1767731315700,0.28891862,3237.1,3236.9,0.001]
[1767731315905,4.36961844,3237.3,3236.9,0.001]
[1767731316105,0.28891862,3237.2,3236.9,0.001]
[1767731316294,4.36961844,3237.3,3236.9,0.001]
[1767731316295,0.28891862,3237.1,3236.9,0.001]
[1767731316483,4.36961844,3237.3,3236.9,0.001]
[1767731316683,1.56753352,3237.2,3236.9,0.001]
[1767731316888,1.56753352,3237.1,3236.3,1.25252888]
[1767731317088,1.27860835,3237.1,3236.3,1.25252888]
[1767731317288,3.09101009,3237.3,3236.4,1.25252888]
[1767731317493,0.28893395,3237.2,3236.6,1.25252888]
[1767731317704,0.28893395,3237.1,3236.6,1.25252888]
[1767731317886,3.08909799,3237.2,3236.6,1.25252888]
[1767731318202,0.28893378,3237.1,3236.6,1.25252888]
[1767731318389,3.08909799,3237.2,3236.6,1.25252888]
[1767731318596,0.28893821,3237.1,3236.6,1.25252888]
[1767731318801,3.08909799,3237.2,3236.6,1.68675695]
[1767731319107,0.28893767,3237.1,3236.6,1.68675695]
[1767731319276,0.28893767,3237.0,3236.6,0.43422807]
[1767731319479,4.36770634,3237.2,3236.6,0.43422807]
[1767731319696,0.28912406,3237.1,3236.6,0.43422807]
[1767731319898,0.28912406,3237.0,3236.6,0.43422807]
[1767731320096,3.08921315,3237.1,3236.6,0.43422807]
[1767731320298,0.28912434,3237.0,3236.6,0.43422807]
[1767731320480,3.08921315,3237.1,3236.6,0.43422807]
[1767731320689,0.2891679,3237.0,3236.6,0.43422807]
[1767731321003,3.08921315,3237.1,3236.6,0.43422807]
[1767731321305,0.28916832,3237.0,3236.4,4.34236605]
[1767731321503,3.08921315,3237.1,3236.4,4.34236605]
[1767731321697,0.28922681,3237.0,3236.4,4.34236605]
[1767731321891,3.08921315,3237.1,3236.4,4.34236605]
[1767731322097,0.28922681,3237.0,3236.4,4.34236605]
[1767731322288,0.28928972,3236.9,3236.5,0.74323045]
[1767731322489,4.36773547,3237.2,3236.5,0.74323045]
[1767731322690,0.28928972,3237.1,3236.5,0.74323045]
[1767731322895,0.28928972,3237.0,3236.6,1.25252888]
[1767731323102,0.28928972,3236.9,3236.6,1.25252888]
[1767731323409,6.17825424,3237.2,3236.4,3.08984736]
[1767731323410,1.27860835,3237.1,3236.4,3.08984736]
[1767731323708,1.56794854,3237.0,3236.4,3.08984736]
[1767731324008,0.28934019,3236.9,3236.4,3.83318834]
[1767731324208,3.08923903,3237.1,3236.4,3.83318834]
[1767731324410,1.56793696,3237.0,3236.3,3.089922]
[1767731324708,1.56793696,3236.9,3236.3,3.089922]
[1767731324903,0.28932861,3236.8,3236.4,3.08984103]
[1767731325205,3.08919263,3237.1,3236.5,1.25252888]
[1767731325409,0.28931179,3237.0,3236.5,1.25252888]
[1767731325615,0.28931179,3236.9,3236.5,1.25252888]
[1767731325827,0.28931179,3236.8,3236.5,1.25252888]
[1767731325983,3.08919263,3237.1,3236.5,1.25252888]
[1767731326182,0.28931176,3237.0,3236.5,1.25252888]
[1767731326486,0.28931176,3236.9,3236.5,1.25252888]
[1767731326683,0.28931176,3236.8,3236.5,1.25252888]
[1767731326894,3.08919263,3237.1,3236.5,1.25252888]
[1767731327089,0.28929751,3237.0,3236.5,1.25252888]
[1767731327293,3.08919263,3237.1,3236.5,1.25252888]
[1767731327294,0.28929751,3236.9,3236.5,1.25252888]
[1767731327493,0.28929751,3236.8,3236.5,1.25252888]
[1767731327812,3.08919263,3237.1,3236.6,1.25252888]
[1767731328016,0.28928629,3237.0,3236.6,1.25252888]
[1767731328198,0.28928629,3236.9,3236.6,1.25252888]
[1767731328509,0.28928629,3236.8,3236.6,1.25252888]
[1767731328719,3.08919263,3237.1,3236.6,1.25252888]
[1767731329011,0.28928294,3237.0,3236.6,1.25252888]
[1767731329184,0.28928294,3236.9,3236.6,1.25252888]
[1767731329383,0.28928294,3236.8,3236.6,1.25252888]
[1767731329583,3.08919263,3237.1,3236.6,1.25252888]
[1767731329785,0.28928298,3237.0,3236.6,1.25252888]
[1767731330084,0.28928298,3236.9,3236.6,1.25252888]
[1767731330410,0.28928298,3236.8,3236.6,1.25252888]
[1767731330586,3.08919263,3237.1,3236.6,1.25252888]
[1767731330793,0.28928567,3237.0,3236.6,1.25252888]
[1767731331114,0.28928567,3236.9,3236.6,1.25252888]
[1767731331296,1.27860835,3237.0,3236.4,3.08984485]
[1767731333284,1.27860835,3237.0,3236.4,3.83318522]
[1767731335299,3.08913131,3237.2,3236.6,1.25252888]
[1767731336701,3.90102791,3237.3,3236.6,1.25252888]
[1767731336902,3.90102791,3237.3,3236.7,1.25352888]
[1767731337100,0.002,3236.8,3236.7,1.25352888]
[1767731337389,0.002,3237.1,3236.7,0.43532824]
[1767731337703,1.25362598,3237.1,3236.7,0.001]
[1767731339921,0.002,3237.1,3236.7,1.34377667]
[1767731340623,0.002,3237.1,3236.7,0.001]
[1767731342625,0.002,3237.1,3236.7,1.29182555]
[1767731343332,1e-08,3237.0,3236.8,1.29082555]
[1767731343627,0.002,3237.1,3236.8,1.29082555]
[1767731344613,0.002,3237.1,3236.7,0.001]
[1767731344810,0.002,3237.1,3236.7,0.43915414]
[1767731345829,0.002,3237.1,3236.8,1.29082555]
[1767731346021,4.91725601,3237.9,3236.7,0.43915414]
[1767731346022,3.08857281,3237.8,3237.3,1.29082555]
[1767731346223,3.89846553,3237.9,3237.3,1.29082555]
[1767731346421,0.81,3237.9,3237.3,1.29082555]
[1767731346637,0.81,3238.0,3237.3,1.29082555]
[1767731348626,2.09725216,3238.0,3237.3,1.29082555]
[1767731348827,7.46409516,3237.9,3237.3,1.29082555]
[1767731349023,1.28725216,3237.8,3237.0,3.08925847]
[1767731349407,1.28725216,3237.8,3237.0,3.09025847]
[1767731349939,1.28725216,3237.8,3237.1,1.29082555]
[1767731350134,1.28725216,3237.8,3237.1,4.380004]
[1767731350323,1.28725216,3237.8,3237.2,1.29082555]
[1767731350524,4.24167686,3238.0,3237.2,1.29082555]
[1767731350525,3.89835821,3238.0,3237.3,1.29082555]
[1767731350736,3.08835821,3238.0,3237.4,1.29082555]
[1767731350942,3.89835821,3238.0,3237.4,1.29082555]
[1767731351616,5.18561037,3238.0,3237.2,3.08904518]
[1767731351821,5.18561037,3238.0,3237.2,4.37987073]
[1767731352022,5.18561037,3238.0,3237.3,1.29082555]
[1767731352223,0.81,3238.0,3237.4,1.29082555]
[1767731352946,3.89840726,3238.0,3237.4,1.29082555]
[1767731354944,0.81,3238.0,3237.4,4.37971836]
[1767731355128,0.81,3238.0,3237.4,1.29082555]
[1767731355329,0.002,3238.1,3237.5,1.29082555]
[1767731355642,3.90023683,3238.1,3237.5,1.29082555]
[1767731356713,5.18748899,3238.1,3237.5,1.29082555]
[1767731356911,1.28725216,3238.0,3237.0,0.001]
[1767731357140,1.63976293,3238.1,3236.7,0.001]
[1767731357141,1.28725216,3237.8,3236.7,0.001]
[1767731357448,1.28725216,3237.8,3236.8,1.29082555]
[1767731357649,0.81,3237.7,3236.8,1.29082555]
[1767731357859,1.28725216,3237.6,3236.7,0.001]
[1767731358016,1.28725216,3237.4,3236.7,0.001]
[1767731359054,4.37623005,3237.4,3236.7,0.001]
[1767731359350,4.37623005,3237.4,3236.7,1.29182555]
[1767731360447,3.29857002,3237.5,3236.7,1.29182555]
[1767731360930,7.67469318,3237.5,3236.7,1.29182555]
[1767731361131,0.76746932,3237.4,3236.7,1.29182555]
[1767731361649,3.85644541,3237.4,3237.0,0.001]
[1767731362947,0.76746932,3237.4,3237.0,0.001]
[1767731363249,0.76746932,3237.4,3237.0,1.29182555]
[1767731363433,0.20972522,3237.5,3237.0,1.29182555]
[1767731364144,3.29853813,3237.5,3237.0,0.001]
[1767731364352,1.28725216,3237.4,3237.0,0.001]
[1767731366252,4.37623459,3237.4,3237.0,0.001]
[1767731368250,5.18623459,3237.4,3237.0,0.001]
[1767731368451,6.03471293,3237.4,3237.0,0.001]
[1767731370026,1.28725216,3237.3,3237.0,0.001]
[1767731371051,4.37624794,3237.3,3237.0,0.001]
[1767731371752,1.28725216,3237.3,3237.0,0.001]
[1767731372634,4.74741785,3237.4,3237.0,0.001]
[1767731372838,0.62629095,3237.3,3237.0,0.001]
[1767731373255,1.65847834,3237.4,3237.0,0.001]
[1767731373454,1.65847834,3237.4,3237.0,1.26945058]
[1767731373754,3.89890451,3237.4,3237.0,1.26745059]
[1767731373960,0.81,3237.4,3237.0,1.26845059]
[1767731374130,0.002,3237.2,3237.0,1.26845059]
[1767731374331,0.81,3237.4,3237.2,1.26845058]
[1767731374569,0.81,3237.4,3237.2,1.26645059]
[1767731375142,3.09080621,3237.5,3237.2,1.26645059]
[1767731375367,3.90080621,3237.5,3237.2,1.26645059]
[1767731375666,3.90080621,3237.5,3237.0,0.001]
[1767731375962,4.7303256,3237.5,3237.0,0.001]
[1767731376171,4.7303256,3237.5,3237.0,1.26945058]
[1767731376466,1.64151939,3237.5,3237.0,1.26945058]
[1767731378453,0.812,3237.5,3237.0,4.35871995]
[1767731378655,0.812,3237.5,3237.1,1.26845058]
[1767731378869,3.90080644,3237.5,3237.1,1.26645059]
[1767731380465,1.30576642,3237.4,3237.0,0.001]
[1767731380669,3.90080644,3237.5,3237.0,0.001]
[1767731380870,1.30576642,3237.3,3237.0,0.001]
[1767731383750,0.69895324,3237.4,3237.0,0.001]
[1767731383953,2.11776642,3237.5,3237.0,0.001]
[1767731384845,5.20659565,3237.5,3237.0,0.001]
[1767731385045,1.30576642,3237.4,3237.0,0.001]
[1767731385970,1.30576642,3237.3,3237.0,0.001]
[1767731387176,1.30776642,3237.2,3237.0,0.001]
[1767731387374,1.30776642,3237.2,3236.4,1.26845058]
[1767731387554,0.75056164,3237.2,3236.5,1.26845058]
[1767731387749,0.75056164,3237.2,3236.6,1.26845058]
[1767731387950,0.002,3237.2,3236.6,1.26845058]
[1767731388703,0.002,3237.2,3236.7,1.26845058]
[1767731391078,0.002,3237.2,3236.7,1.26645059]
[1767731392683,0.002,3237.2,3236.7,1.2644506]
[1767731392876,0.002,3237.2,3236.3,4.35836051]
[1767731393082,0.002,3237.2,3236.4,1.26845058]
[1767731393283,0.002,3237.2,3236.4,4.35828877]
[1767731393469,1.30776642,3237.2,3236.5,1.26845058]
[1767731394672,1.30576642,3237.0,3236.3,3.83483804]
[1767731394963,3.08918476,3237.1,3236.4,1.26845058]
[1767731395281,4.39495118,3237.1,3236.4,1.26845058]
[1767731395885,1.30576642,3237.1,3236.4,1.26845058]
[1767731396089,0.002,3237.2,3236.5,1.26845058]
[1767731396886,3.09109013,3237.2,3236.5,1.26845058]
[1767731397189,4.39685655,3237.2,3236.5,1.26845058]
[1767731398664,0.002,3236.9,3236.5,1.26845058]
[1767731400061,0.002,3236.9,3236.5,4.35818697]
[1767731400290,0.002,3236.9,3236.6,1.3267275]
[1767731401996,0.002,3237.2,3236.9,1.28613558]
[1767731402310,0.002,3237.5,3237.2,1.28613558]
[1767731404669,0.002,3237.5,3237.2,1.28413559]
[1767731405796,0.002,3237.5,3236.9,4.37546597]
[1767731405982,0.002,3237.5,3237.0,1.72368218]
[1767731406912,1.24986064,3237.9,3237.3,1.28613558]
[1767731407073,2.05986064,3237.9,3237.0,4.91913198]
[1767731407272,2.05986064,3237.9,3237.1,1.28613558]
[1767731407503,2.05986064,3237.9,3237.2,1.28613558]
[1767731407793,5.14834435,3237.9,3237.2,1.28613558]
[1767731408371,5.14834435,3237.9,3237.2,4.37520142]
[1767731409598,5.14834435,3237.9,3237.2,1.28613558]
[1767731410802,5.14834435,3237.9,3237.2,4.37521694]
[1767731411097,5.14834435,3237.9,3237.2,1.28713558]
[1767731411283,0.002,3237.6,3237.2,4.37622233]
[1767731411485,2.06186064,3237.9,3237.2,5.12276611]
[1767731411802,5.15028907,3237.9,3237.2,4.37622233]
[1767731412298,5.15028907,3237.9,3237.2,1.28713558]
[1767731412496,5.15028907,3237.9,3237.2,4.37620534]
[1767731414815,0.002,3238.4,3237.8,1.28613558]
[1767731415018,4.33992382,3238.3,3237.5,1.28613558]
[1767731415313,1.24986064,3238.2,3237.5,1.28613558]
[1767731415476,3.09006318,3238.3,3237.9,0.01905922]
[1767731416002,0.002,3238.3,3237.9,1.3051948]
[1767731416177,3.09006103,3238.3,3237.9,1.3051948]
[1767731416918,0.002,3238.3,3237.9,1.3051948]
[1767731417517,0.002,3238.4,3238.1,1.28613558]
[1767731418999,0.002,3238.4,3238.2,1.28613558]
[1767731422323,0.002,3238.4,3238.0,1.28613558]
[1767731423394,0.002,3238.1,3238.0,1.28613558]
[1767731423596,0.002,3238.1,3238.0,1.76943153]
[1767731424125,0.002,3238.4,3238.1,1.28613558]
[1767731426509,0.002,3238.4,3238.0,3.57161233]
[1767731428187,0.002,3238.4,3237.0,1.28613558]
[1767731428188,1.24986064,3238.1,3237.0,1.28613558]
[1767731428301,1.24986064,3237.7,3237.0,4.37536379]
[1767731430055,4.33852975,3237.7,3237.0,1.28613558]
[1767731430928,4.33852975,3237.7,3237.0,4.3753946]
[1767731432235,7.51657265,3238.1,3237.2,1.24773577]
[1767731432437,7.51657265,3238.1,3237.2,0.001]
[1767731432438,1.34011115,3237.8,3237.2,0.001]
[1767731432637,1.34011115,3237.8,3234.7,6.43508267]
[1767731432638,1.34011115,3237.6,3236.5,1.24673577]
[1767731432937,1.34011115,3237.6,3236.7,3.08952209]
[1767731433537,1.34011115,3237.6,3236.8,3.08944715]
[1767731434142,1.34011115,3237.6,3236.9,1.24673577]
[1767731434512,4.64377436,3237.6,3236.9,1.24673577]
[1767731435445,1.34011115,3237.5,3236.6,1.24673577]
[1767731435834,1.34011115,3237.5,3236.7,1.24673577]
[1767731436028,1.34011115,3237.5,3236.3,3.08987514]
[1767731436228,1.26516584,3237.4,3236.6,1.24673577]
[1767731438237,3.08899391,3237.3,3236.6,1.24673577]
[1767731438937,1.34011115,3237.2,3236.4,1.24673577]
[1767731441020,3.08918476,3237.1,3236.4,1.24673577]
[1767731441416,3.89918476,3237.1,3236.4,1.24673577]
[1767731441622,5.22393724,3237.1,3236.4,1.24673577]
[1767731441928,4.41393724,3237.1,3236.4,1.24673577]
[1767731442128,5.22393724,3237.1,3236.4,1.24673577]
[1767731443352,1.34011115,3237.0,3236.2,1.24773577]
[1767731445253,4.42948678,3236.9,3236.2,4.33775744]
[1767731445450,1.34011115,3236.8,3236.2,0.001]
[1767731447025,0.9653424,3236.9,3236.2,1.24773577]
[1767731447226,4.05477917,3236.9,3236.2,1.24773577]
[1767731447627,4.05477917,3236.9,3236.5,0.001]
[1767731448359,0.002,3237.2,3236.8,4.91913198]
[1767731448657,1.34011115,3238.0,3237.2,1.24673577]
[1767731448822,1.34011115,3238.0,3237.0,1.24673577]
[1767731449459,1.34011115,3237.8,3237.0,4.33598462]
[1767731449750,1.34011115,3237.8,3237.0,7.42526481]
[1767731450048,1.34011115,3237.8,3237.1,0.74252648]
[1767731450252,1.34011115,3237.9,3237.2,1.24673577]
[1767731450435,1.34011115,3238.1,3237.3,1.24673577]
[1767731450826,1.34011115,3238.3,3237.3,1.24673577]
[1767731452436,1.34011115,3238.3,3237.5,1.24673577]
[1767731452638,1.34011115,3238.3,3237.5,1.98918905]
[1767731453837,3.89996397,3238.4,3237.7,1.24673577]
[1767731454452,0.812,3238.4,3237.7,1.24673577]
[1767731456258,3.89995338,3238.4,3237.7,3.08859435]
[1767731456430,3.89995338,3238.4,3237.8,1.24673577]
[1767731456753,4.5991247,3238.4,3237.8,1.24673577]
[1767731456944,1.51117132,3238.4,3237.8,1.24673577]
[1767731457144,0.812,3238.4,3237.8,1.24673577]
[1767731457932,0.002,3238.4,3237.8,1.24673577]
[1767731458258,0.002,3238.4,3238.0,1.31459269]
[1767731458466,0.002,3238.4,3238.0,1.31259269]
[1767731458969,1e-08,3238.5,3238.1,1.31459269]
[1767731459259,0.002,3238.7,3238.1,1.31459269]
[1767731459767,0.002,3239.3,3238.4,1.31459269]
[1767731459952,0.002,3239.3,3238.6,1.31459269]
[1767731460332,0.811,3239.6,3238.9,1.31459269]
[1767731460333,1.29576692,3239.5,3238.9,1.31459269]
[1767731460654,0.002,3239.6,3238.9,1.31459269]
[1767731460835,0.002,3239.6,3239.3,1.31459269]
[1767731461041,0.002,3239.7,3238.8,1.31459269]
[1767731462469,0.002,3239.7,3239.0,1.28400324]
[1767731462647,0.002,3239.7,3239.1,1.28400324]
[1767731464367,0.002,3239.7,3239.1,4.37124398]
[1767731464549,0.002,3239.7,3239.2,1.28400324]
[1767731466233,1.34498481,3239.7,3239.0,0.43714712]
[1767731466438,1.34298481,3239.5,3238.7,1.28400324]
[1767731466657,1.34298481,3239.3,3238.2,1.28400324]
[1767731466868,2.15198481,3239.6,3238.6,1.28400324]
[1767731468763,3.08689612,3239.5,3238.7,1.28400324]
[1767731470670,0.002,3239.7,3238.8,1.28400324]
[1767731470981,0.002,3239.7,3238.8,1.31487887]
[1767731471134,0.002,3239.7,3239.0,1.28400324]
[1767731471889,1.34298481,3240.5,3239.5,1.28400324]
[1767731471890,3.08911136,3240.4,3239.5,1.28400324]
[1767731472540,0.003,3240.4,3239.5,1.28400324]